[Event "*** Titled Tuesday 3|2 Blitz (Early)"]
[Site "Chess.com"]
[Date "2016.11.01"]
[Round "9"]
[White "IIIlllII1llIl"]
[Black "jk13"]
[Result "0-1"]
[WhiteElo "2509"]
[BlackElo "2501"]
[TimeControl "180+2"]
[EndTime "12:59:37 PDT"]
[Termination "jk13 won by resignation"]

1. e4 {[%clk 0:03:02]} 1... e6 {[%clk 0:02:57.8]} 2. d4 {[%clk 0:03:02.9]} 2...
d5 {[%clk 0:02:59.4]} 3. Nd2 {[%clk 0:03:04.1]} 3... c5 {[%clk 0:03:00.7]} 4.
exd5 {[%clk 0:03:04.5]} 4... Qxd5 {[%clk 0:03:02.6]} 5. Ngf3 {[%clk 0:03:05.4]}
5... cxd4 {[%clk 0:03:01.9]} 6. Bc4 {[%clk 0:03:06.7]} 6... Qd7 {[%clk
0:03:03.4]} 7. O-O {[%clk 0:03:04.6]} 7... Nc6 {[%clk 0:03:04.9]} 8. Nb3 {[%clk
0:03:04.6]} 8... Nf6 {[%clk 0:03:06.4]} 9. Qe2 {[%clk 0:03:04.1]} 9... a6 {[%clk
0:03:07.3]} 10. a4 {[%clk 0:02:59.4]} 10... Qc7 {[%clk 0:03:07.9]} 11. Rd1
{[%clk 0:02:58.9]} 11... Bd6 {[%clk 0:03:07.1]} 12. Nbxd4 {[%clk 0:02:59.2]}
12... Nxd4 {[%clk 0:03:09]} 13. Rxd4 {[%clk 0:03:00.3]} 13... h6 {[%clk
0:03:06.5]} 14. b3 {[%clk 0:02:55]} 14... b6 {[%clk 0:03:05]} 15. Bb2 {[%clk
0:02:33]} 15... O-O {[%clk 0:03:02.8]} 16. Rad1 {[%clk 0:02:31]} 16... Bc5
{[%clk 0:03:02.8]} 17. Rh4 {[%clk 0:02:29.6]} 17... Be7 {[%clk 0:03:02.2]} 18.
Ne5 {[%clk 0:02:24.1]} 18... Bb7 {[%clk 0:03:03.1]} 19. Rh3 {[%clk 0:00:25.1]}
19... b5 {[%clk 0:02:17.4]} 20. Bd3 {[%clk 0:00:21.5]} 20... bxa4 {[%clk
0:02:13.9]} 21. Ng4 {[%clk 0:00:21.5]} 21... Qf4 {[%clk 0:01:33.9]} 22. Nxh6+
{[%clk 0:00:13.5]} 22... gxh6 {[%clk 0:01:33.7]} 23. Bc1 {[%clk 0:00:14.5]}
23... Qb4 {[%clk 0:00:56.6]} 24. Bxh6 {[%clk 0:00:14.3]} 24... Be4 {[%clk
0:00:37.6]} 25. Rh4 {[%clk 0:00:15.3]} 25... Bxd3 {[%clk 0:00:35.6]} 26. Rxd3
{[%clk 0:00:06.7]} 26... Qxh4 {[%clk 0:00:35.8]} 27. Rg3+ {[%clk 0:00:07.7]}
27... Qxg3 {[%clk 0:00:18]} 28. hxg3 {[%clk 0:00:08.4]} 28... Rfd8 {[%clk
0:00:19.5]} 29. Bf4 {[%clk 0:00:08.5]} 29... a3 {[%clk 0:00:18.7]} 30. Be5
{[%clk 0:00:09.7]} 30... Rd5 {[%clk 0:00:19.3]} 31. c4 {[%clk 0:00:07.8]} 31...
Rd7 {[%clk 0:00:18.2]} 32. Qe4 {[%clk 0:00:08.2]} 32... Nxe4 {[%clk 0:00:18.5]}
0-1

[Event "*** Titled Tuesday 3|2 Blitz (Early)"]
[Site "Chess.com"]
[Date "2016.11.01"]
[Round "9"]
[White "ulises2013"]
[Black "FearlessKing64"]
[Result "0-1"]
[WhiteElo "2264"]
[BlackElo "2153"]
[TimeControl "180+2"]
[EndTime "12:59:41 PDT"]
[Termination "FearlessKing64 won by resignation"]

1. e4 {[%clk 0:02:58.8]} 1... c5 {[%clk 0:02:55.2]} 2. Nf3 {[%clk 0:02:59.3]}
2... d6 {[%clk 0:02:56.5]} 3. d4 {[%clk 0:02:59.7]} 3... cxd4 {[%clk 0:02:57.9]}
4. Nxd4 {[%clk 0:03:01.6]} 4... Nf6 {[%clk 0:02:59.5]} 5. Nc3 {[%clk 0:03:02]}
5... a6 {[%clk 0:03:01.2]} 6. Bg5 {[%clk 0:02:54.7]} 6... e6 {[%clk 0:03:01.3]}
7. f4 {[%clk 0:02:53.8]} 7... Be7 {[%clk 0:03:02.4]} 8. Qf3 {[%clk 0:02:53.8]}
8... h6 {[%clk 0:03:02.7]} 9. Bh4 {[%clk 0:02:51.6]} 9... g5 {[%clk 0:03:03.7]}
10. fxg5 {[%clk 0:02:47.9]} 10... Nfd7 {[%clk 0:03:04.5]} 11. Nxe6 {[%clk
0:02:31.7]} 11... fxe6 {[%clk 0:03:06.4]} 12. Qh5+ {[%clk 0:02:31.7]} 12... Kf8
{[%clk 0:03:07.9]} 13. Bc4 {[%clk 0:02:31.7]} 13... Ne5 {[%clk 0:03:07.4]} 14.
O-O+ {[%clk 0:02:30.8]} 14... Kg8 {[%clk 0:03:02.2]} 15. Rf6 {[%clk 0:02:23.1]}
15... Bxf6 {[%clk 0:02:58.2]} 16. gxf6 {[%clk 0:02:17.3]} 16... Qf8 {[%clk
0:02:41.6]} 17. Nd5 {[%clk 0:02:04.4]} 17... Qf7 {[%clk 0:02:27.8]} 18. Ne7+
{[%clk 0:01:59.8]} 18... Kh7 {[%clk 0:02:23]} 19. Qe2 {[%clk 0:01:55.7]} 19...
Nxc4 {[%clk 0:02:11.4]} 20. Qxc4 {[%clk 0:01:54.5]} 20... Nc6 {[%clk 0:02:11]}
21. e5 {[%clk 0:01:51]} 21... Nxe5 {[%clk 0:01:48.2]} 22. Qe4+ {[%clk
0:01:49.1]} 22... Ng6 {[%clk 0:01:41]} 23. Rf1 {[%clk 0:01:48.6]} 23... d5
{[%clk 0:01:28.3]} 24. Qd3 {[%clk 0:01:47.4]} 24... Bd7 {[%clk 0:01:28.8]} 25.
c4 {[%clk 0:01:39.2]} 25... Rhd8 {[%clk 0:01:11.8]} 26. Rf3 {[%clk 0:01:37.9]}
26... dxc4 {[%clk 0:01:09.2]} 27. Qc2 {[%clk 0:01:36.9]} 27... Ba4 {[%clk
0:01:03.1]} 28. Qxa4 {[%clk 0:01:35.6]} 28... Nxh4 {[%clk 0:01:03.7]} 29. Qc2+
{[%clk 0:01:32.1]} 29... Kh8 {[%clk 0:01:01.9]} 30. Rh3 {[%clk 0:01:27.5]} 30...
Qh5 {[%clk 0:00:32.8]} 31. Rxh4 {[%clk 0:01:25.2]} 31... Rd1+ {[%clk 0:00:28.7]}
32. Kf2 {[%clk 0:01:23.4]} 32... Qxh4+ {[%clk 0:00:29.7]} 33. Ke2 {[%clk
0:01:24.5]} 33... Qg4+ {[%clk 0:00:27.2]} 34. Kf2 {[%clk 0:01:24.9]} 34... Rad8
{[%clk 0:00:26.4]} 35. Ng6+ {[%clk 0:01:23.8]} 35... Kg8 {[%clk 0:00:24.7]} 36.
Ne7+ {[%clk 0:01:09.7]} 36... Kf7 {[%clk 0:00:25.1]} 37. Qh7+ {[%clk 0:01:09.1]}
37... Kxf6 {[%clk 0:00:24.1]} 38. Qxh6+ {[%clk 0:01:02.9]} 38... Kxe7 {[%clk
0:00:23.3]} 39. Qg7+ {[%clk 0:01:02.8]} 39... Qxg7 {[%clk 0:00:23.2]} 0-1

[Event "*** Titled Tuesday 3|2 Blitz (Early)"]
[Site "Chess.com"]
[Date "2016.11.01"]
[Round "9"]
[White "VMikhalevski"]
[Black "MFBerna"]
[Result "1-0"]
[WhiteElo "2503"]
[BlackElo "2178"]
[TimeControl "180+2"]
[EndTime "13:00:12 PDT"]
[Termination "VMikhalevski won by resignation"]

1. b3 {[%clk 0:03:01.9]} 1... e5 {[%clk 0:02:59.8]} 2. Bb2 {[%clk 0:03:03.5]}
2... Nc6 {[%clk 0:03:00.4]} 3. e3 {[%clk 0:03:04.7]} 3... d5 {[%clk 0:03:01.7]}
4. Bb5 {[%clk 0:03:04.4]} 4... Bd6 {[%clk 0:03:02.3]} 5. Nf3 {[%clk 0:02:58.3]}
5... Qe7 {[%clk 0:02:59.6]} 6. d4 {[%clk 0:02:55.7]} 6... exd4 {[%clk 0:02:59]}
7. Qxd4 {[%clk 0:02:53.4]} 7... Nf6 {[%clk 0:02:50.2]} 8. Nc3 {[%clk 0:02:53.4]}
8... Bd7 {[%clk 0:02:46.6]} 9. Qd1 {[%clk 0:02:40.3]} 9... Ba3 {[%clk
0:02:27.9]} 10. Bxa3 {[%clk 0:02:29.1]} 10... Qxa3 {[%clk 0:02:29.8]} 11. O-O
{[%clk 0:02:18.4]} 11... Qc5 {[%clk 0:02:26.7]} 12. Qd2 {[%clk 0:02:13.5]} 12...
O-O-O {[%clk 0:02:19.3]} 13. Bxc6 {[%clk 0:02:04.5]} 13... Bxc6 {[%clk
0:02:15.3]} 14. Qd4 {[%clk 0:02:04.8]} 14... Qxd4 {[%clk 0:02:11.7]} 15. Nxd4
{[%clk 0:02:05.5]} 15... Bd7 {[%clk 0:02:11.8]} 16. Rad1 {[%clk 0:02:06]} 16...
Be6 {[%clk 0:02:08.6]} 17. Rfe1 {[%clk 0:02:03.3]} 17... c5 {[%clk 0:02:08.7]}
18. Nxe6 {[%clk 0:02:03.7]} 18... fxe6 {[%clk 0:02:10.6]} 19. f3 {[%clk
0:01:55.7]} 19... e5 {[%clk 0:02:04.7]} 20. Rd2 {[%clk 0:01:53.9]} 20... Kc7
{[%clk 0:01:53.7]} 21. Red1 {[%clk 0:01:52.6]} 21... d4 {[%clk 0:01:54.7]} 22.
Nb5+ {[%clk 0:01:46.2]} 22... Kc6 {[%clk 0:01:51.2]} 23. a4 {[%clk 0:01:43.2]}
23... a6 {[%clk 0:01:49.9]} 24. Na3 {[%clk 0:01:43.2]} 24... b5 {[%clk
0:01:01.2]} 25. exd4 {[%clk 0:01:38.4]} 25... exd4 {[%clk 0:00:55.3]} 26. c3
{[%clk 0:01:37.1]} 26... Rd7 {[%clk 0:00:35.1]} 27. cxd4 {[%clk 0:01:35.4]}
27... Rhd8 {[%clk 0:00:36.5]} 28. axb5+ {[%clk 0:01:36.1]} 28... axb5 {[%clk
0:00:37.4]} 29. Nc2 {[%clk 0:01:37]} 29... c4 {[%clk 0:00:23]} 30. Nb4+ {[%clk
0:01:31.5]} 30... Kb6 {[%clk 0:00:23]} 31. bxc4 {[%clk 0:01:30.4]} 31... bxc4
{[%clk 0:00:24.9]} 32. Rb1 {[%clk 0:01:27.1]} 32... Rxd4 {[%clk 0:00:14.8]} 33.
Nc2+ {[%clk 0:01:25.6]} 33... Kc5 {[%clk 0:00:15.8]} 34. Nxd4 {[%clk 0:01:26.2]}
34... Rxd4 {[%clk 0:00:17.7]} 35. Ra2 {[%clk 0:01:14.8]} 35... c3 {[%clk
0:00:16.7]} 36. Ra5+ {[%clk 0:01:09.5]} 36... Kc4 {[%clk 0:00:17.2]} 37. Ra4+
{[%clk 0:01:07.5]} 37... Kc5 {[%clk 0:00:17.3]} 38. Ra3 {[%clk 0:01:05.8]} 38...
Rc4 {[%clk 0:00:17.8]} 39. Kf2 {[%clk 0:01:00.6]} 39... Nd5 {[%clk 0:00:17.6]}
40. Ra5+ {[%clk 0:00:57.3]} 40... Kc6 {[%clk 0:00:11.7]} 41. Ke2 {[%clk
0:00:52.1]} 41... Nf4+ {[%clk 0:00:09.8]} 42. Ke3 {[%clk 0:00:50.4]} 42... c2
{[%clk 0:00:11.7]} 43. Rc1 {[%clk 0:00:51]} 43... Nxg2+ {[%clk 0:00:10.9]} 44.
Kd3 {[%clk 0:00:49.9]} 44... Rh4 {[%clk 0:00:12]} 45. Rxc2+ {[%clk 0:00:49.9]}
45... Kd6 {[%clk 0:00:11.9]} 46. Rxg2 {[%clk 0:00:50.3]} 1-0

[Event "*** Titled Tuesday 3|2 Blitz (Early)"]
[Site "Chess.com"]
[Date "2016.11.01"]
[Round "9"]
[White "Shivagami"]
[Black "ftorodent"]
[Result "0-1"]
[WhiteElo "2089"]
[BlackElo "2486"]
[TimeControl "180+2"]
[EndTime "13:00:13 PDT"]
[Termination "ftorodent won by checkmate"]

1. e4 {[%clk 0:03:02]} 1... c5 {[%clk 0:03:00.1]} 2. Nc3 {[%clk 0:03:01.6]} 2...
e6 {[%clk 0:02:59.3]} 3. g3 {[%clk 0:03:02.2]} 3... Nc6 {[%clk 0:02:57.1]} 4.
Bg2 {[%clk 0:03:02.6]} 4... g6 {[%clk 0:02:56.1]} 5. d3 {[%clk 0:03:03.2]} 5...
Bg7 {[%clk 0:02:55.6]} 6. Be3 {[%clk 0:03:03.9]} 6... d6 {[%clk 0:02:52]} 7. Qd2
{[%clk 0:03:03.1]} 7... Rb8 {[%clk 0:02:50.2]} 8. Nge2 {[%clk 0:02:59.3]} 8...
Nd4 {[%clk 0:02:50]} 9. O-O {[%clk 0:02:45.7]} 9... Ne7 {[%clk 0:02:50.6]} 10.
Bh6 {[%clk 0:02:42.8]} 10... O-O {[%clk 0:02:44.2]} 11. Bxg7 {[%clk 0:02:42.2]}
11... Kxg7 {[%clk 0:02:45.1]} 12. Nxd4 {[%clk 0:02:43.1]} 12... cxd4 {[%clk
0:02:46.4]} 13. Ne2 {[%clk 0:02:44.3]} 13... e5 {[%clk 0:02:47.2]} 14. f4 {[%clk
0:02:44.8]} 14... f6 {[%clk 0:02:48]} 15. Kh1 {[%clk 0:02:33]} 15... Bg4 {[%clk
0:02:47.4]} 16. h3 {[%clk 0:02:29.1]} 16... Bxe2 {[%clk 0:02:48]} 17. Qxe2
{[%clk 0:02:27]} 17... Qb6 {[%clk 0:02:49.7]} 18. c3 {[%clk 0:02:18.5]} 18...
Rfc8 {[%clk 0:02:49.4]} 19. c4 {[%clk 0:02:07.2]} 19... Qc6 {[%clk 0:02:48.4]}
20. Qg4 {[%clk 0:01:57.5]} 20... Rc7 {[%clk 0:02:44.7]} 21. h4 {[%clk
0:01:55.1]} 21... Qd7 {[%clk 0:02:43.2]} 22. f5 {[%clk 0:01:54.1]} 22... h6
{[%clk 0:02:36.9]} 23. Kh2 {[%clk 0:01:32.1]} 23... g5 {[%clk 0:02:34.8]} 24.
Rh1 {[%clk 0:01:32.4]} 24... b5 {[%clk 0:02:34.9]} 25. b3 {[%clk 0:01:29.4]}
25... bxc4 {[%clk 0:02:34.8]} 26. dxc4 {[%clk 0:01:30.8]} 26... Rh8 {[%clk
0:02:33.1]} 27. Kg1 {[%clk 0:01:30.8]} 27... h5 {[%clk 0:02:33.5]} 28. Qe2
{[%clk 0:01:23.8]} 28... g4 {[%clk 0:02:34.7]} 29. Qd3 {[%clk 0:01:19.5]} 29...
Nc6 {[%clk 0:02:31.6]} 30. a3 {[%clk 0:01:15.4]} 30... a5 {[%clk 0:02:32.1]} 31.
Bf1 {[%clk 0:01:12.4]} 31... Rb8 {[%clk 0:02:32.8]} 32. Be2 {[%clk 0:01:09.1]}
32... Rcb7 {[%clk 0:02:25.6]} 33. Bd1 {[%clk 0:01:03.7]} 33... Qc7 {[%clk
0:02:19.1]} 34. Rh2 {[%clk 0:01:00]} 34... Ne7 {[%clk 0:02:15.7]} 35. Rb2 {[%clk
0:00:47.4]} 35... Nc8 {[%clk 0:02:15.4]} 36. Rab1 {[%clk 0:00:40.6]} 36... Qc5
{[%clk 0:02:15.8]} 37. Ra1 {[%clk 0:00:36.4]} 37... Nb6 {[%clk 0:02:17]} 38. Rd2
{[%clk 0:00:18.6]} 38... Nd7 {[%clk 0:02:13.3]} 39. Rb2 {[%clk 0:00:16.7]} 39...
Qa7 {[%clk 0:02:12.9]} 40. Rab1 {[%clk 0:00:10.4]} 40... Nc5 {[%clk 0:02:12.5]}
41. Qe2 {[%clk 0:00:08.9]} 41... d3 {[%clk 0:02:07]} 42. Qe3 {[%clk 0:00:09.7]}
42... Nxe4 {[%clk 0:02:08.3]} 43. Qxa7 {[%clk 0:00:10.5]} 43... Rxa7 {[%clk
0:02:09.5]} 44. Kg2 {[%clk 0:00:11.8]} 44... Rab7 {[%clk 0:02:00.1]} 45. b4
{[%clk 0:00:11.6]} 45... Nc3 {[%clk 0:02:01.2]} 46. Rc1 {[%clk 0:00:12]} 46...
Nxd1 {[%clk 0:01:57.2]} 47. Rxd1 {[%clk 0:00:13.4]} 47... e4 {[%clk 0:01:57.1]}
48. b5 {[%clk 0:00:14.6]} 48... Rc8 {[%clk 0:01:57.3]} 49. Rc1 {[%clk
0:00:14.1]} 49... Rc5 {[%clk 0:01:58.3]} 50. Rc3 {[%clk 0:00:14.5]} 50... d5
{[%clk 0:01:59.3]} 51. Kf2 {[%clk 0:00:08.9]} 51... d4 {[%clk 0:02:00.5]} 52.
Rc1 {[%clk 0:00:06.9]} 52... d2 {[%clk 0:01:58]} 53. Rxd2 {[%clk 0:00:06.2]}
53... e3+ {[%clk 0:01:58.9]} 54. Ke2 {[%clk 0:00:07.6]} 54... exd2 {[%clk
0:01:59.9]} 55. Kxd2 {[%clk 0:00:09.5]} 55... Rxf5 {[%clk 0:01:59.5]} 56. Kd3
{[%clk 0:00:10.5]} 56... Rd7 {[%clk 0:02:00.3]} 57. Ke4 {[%clk 0:00:11.1]} 57...
Rf3 {[%clk 0:02:00.2]} 58. b6 {[%clk 0:00:11.2]} 58... Re3+ {[%clk 0:01:58.1]}
59. Kf5 {[%clk 0:00:12.2]} 59... Rde7 {[%clk 0:01:59.3]} 60. b7 {[%clk 0:00:09]}
60... Rf3# {[%clk 0:02:00.4]} 0-1

[Event "*** Titled Tuesday 3|2 Blitz (Early)"]
[Site "Chess.com"]
[Date "2016.11.01"]
[Round "9"]
[White "Haridaskesavan"]
[Black "visa"]
[Result "1-0"]
[WhiteElo "2147"]
[BlackElo "2125"]
[TimeControl "180+2"]
[EndTime "13:01:14 PDT"]
[Termination "Haridaskesavan won on time"]

1. e4 {[%clk 0:03:00.7]} 1... d6 {[%clk 0:03:00.3]} 2. g3 {[%clk 0:03:01]} 2...
Nf6 {[%clk 0:02:59.3]} 3. Bg2 {[%clk 0:03:02]} 3... e5 {[%clk 0:02:55.8]} 4. Ne2
{[%clk 0:03:02.1]} 4... Be7 {[%clk 0:02:57.1]} 5. O-O {[%clk 0:02:59.2]} 5... h5
{[%clk 0:02:56]} 6. h4 {[%clk 0:02:59.3]} 6... Ng4 {[%clk 0:02:53.2]} 7. f3
{[%clk 0:02:58]} 7... Bxh4 {[%clk 0:02:51.5]} 8. fxg4 {[%clk 0:02:53.9]} 8...
hxg4 {[%clk 0:02:42]} 9. Qe1 {[%clk 0:02:53.7]} 9... Bg5 {[%clk 0:02:37.1]} 10.
d4 {[%clk 0:02:51.1]} 10... Nc6 {[%clk 0:02:08]} 11. Qf2 {[%clk 0:02:48.8]}
11... f5 {[%clk 0:01:40]} 12. exf5 {[%clk 0:02:40.1]} 12... Bxc1 {[%clk
0:01:40.6]} 13. Bxc6+ {[%clk 0:02:36.6]} 13... bxc6 {[%clk 0:01:36.1]} 14. Nxc1
{[%clk 0:02:36.7]} 14... Qf6 {[%clk 0:01:22.5]} 15. Qe3 {[%clk 0:02:26.2]} 15...
Qf7 {[%clk 0:01:13.7]} 16. dxe5 {[%clk 0:02:24.2]} 16... d5 {[%clk 0:00:55.3]}
17. Qg5 {[%clk 0:02:08.2]} 17... Ba6 {[%clk 0:00:55.7]} 18. e6 {[%clk
0:01:56.6]} 18... Qg8 {[%clk 0:00:49.8]} 19. Nd3 {[%clk 0:01:55.5]} 19... Rh6
{[%clk 0:00:42.2]} 20. f6 {[%clk 0:01:44.8]} 20... O-O-O {[%clk 0:00:27]} 21. f7
{[%clk 0:01:22.1]} 21... Qh7 {[%clk 0:00:06.1]} 22. Qxd8+ {[%clk 0:01:22.6]}
22... Kb7 {[%clk 0:00:07.5]} 23. Qh4 {[%clk 0:01:09]} 23... Rxh4 {[%clk
0:00:08.1]} 24. gxh4 {[%clk 0:01:07.9]} 24... Qxh4 {[%clk 0:00:09.2]} 25. Rf2
{[%clk 0:00:56]} 25... Bxd3 {[%clk 0:00:08.2]} 26. f8=Q {[%clk 0:00:28.9]} 26...
g3 {[%clk 0:00:09.5]} 27. Rg2 {[%clk 0:00:19.8]} 27... Qd4+ {[%clk 0:00:09.3]}
28. Kh1 {[%clk 0:00:20.7]} 28... Qh4+ {[%clk 0:00:10]} 29. Kg1 {[%clk
0:00:21.2]} 29... Qd4+ {[%clk 0:00:10.8]} 30. Rf2 {[%clk 0:00:20.4]} 30... gxf2+
{[%clk 0:00:10.3]} 31. Qxf2 {[%clk 0:00:20.7]} 31... Qg4+ {[%clk 0:00:11.7]} 32.
Qg2 {[%clk 0:00:21.4]} 32... Qd1+ {[%clk 0:00:12.7]} 33. Kh2 {[%clk 0:00:22]}
33... Qh5+ {[%clk 0:00:13.3]} 34. Kg1 {[%clk 0:00:22.6]} 34... Qd1+ {[%clk
0:00:14.2]} 35. Kh2 {[%clk 0:00:23]} 35... Qh5+ {[%clk 0:00:14.2]} 36. Qh3
{[%clk 0:00:24.1]} 36... Qe2+ {[%clk 0:00:13.5]} 37. Qg2 {[%clk 0:00:24.7]}
37... Qh5+ {[%clk 0:00:14]} 38. Kg3 {[%clk 0:00:24.9]} 38... g5 {[%clk
0:00:13.3]} 39. Kf2 {[%clk 0:00:21.5]} 39... Qh4+ {[%clk 0:00:13]} 40. Qg3
{[%clk 0:00:21.9]} 40... Qd4+ {[%clk 0:00:09.6]} 41. Ke1 {[%clk 0:00:19.3]}
41... Bxc2 {[%clk 0:00:07.5]} 42. Nc3 {[%clk 0:00:19.8]} 42... Be4 {[%clk
0:00:02.4]} 43. Nxe4 {[%clk 0:00:19.8]} 43... dxe4 {[%clk 0:00:03.3]} 44. Qc3
{[%clk 0:00:19.4]} 44... Qg1+ {[%clk 0:00:03.4]} 45. Kd2 {[%clk 0:00:19.8]}
45... Qxa1 {[%clk 0:00:05.3]} 46. e7 {[%clk 0:00:20.4]} 46... Qf1 {[%clk
0:00:04.4]} 47. e8=Q {[%clk 0:00:20.4]} 47... Qf2+ {[%clk 0:00:05.6]} 48. Kc1
{[%clk 0:00:21]} 48... Qf1+ {[%clk 0:00:06.6]} 49. Kc2 {[%clk 0:00:22.1]} 49...
Qe2+ {[%clk 0:00:07.1]} 50. Kb3 {[%clk 0:00:22.9]} 50... a5 {[%clk 0:00:05.9]}
51. Qexc6+ {[%clk 0:00:21.4]} 51... Ka7 {[%clk 0:00:06.5]} 52. Qxc7+ {[%clk
0:00:22.3]} 1-0

[Event "*** Titled Tuesday 3|2 Blitz (Early)"]
[Site "Chess.com"]
[Date "2016.11.01"]
[Round "9"]
[White "TomsKantans"]
[Black "Kawhi_Leonard2"]
[Result "0-1"]
[WhiteElo "2431"]
[BlackElo "2090"]
[TimeControl "180+2"]
[EndTime "13:01:38 PDT"]
[Termination "Kawhi_Leonard2 won by resignation"]

1. e4 {[%clk 0:03:02]} 1... c5 {[%clk 0:02:59.9]} 2. Nf3 {[%clk 0:03:01.4]} 2...
d6 {[%clk 0:03:01.1]} 3. d4 {[%clk 0:03:02.3]} 3... cxd4 {[%clk 0:03:03]} 4.
Nxd4 {[%clk 0:03:04.2]} 4... Nf6 {[%clk 0:03:04.5]} 5. Nc3 {[%clk 0:03:05.8]}
5... g6 {[%clk 0:03:06.1]} 6. Be3 {[%clk 0:03:04.8]} 6... Bg7 {[%clk 0:03:07.3]}
7. f3 {[%clk 0:03:06.4]} 7... Nc6 {[%clk 0:03:08.4]} 8. Qd2 {[%clk 0:03:05.8]}
8... O-O {[%clk 0:03:09.7]} 9. g4 {[%clk 0:03:06.6]} 9... Be6 {[%clk 0:03:09.7]}
10. Nxe6 {[%clk 0:03:06.5]} 10... fxe6 {[%clk 0:03:10.8]} 11. O-O-O {[%clk
0:03:07.8]} 11... Ne5 {[%clk 0:03:11.7]} 12. Be2 {[%clk 0:03:08.7]} 12... Qc8
{[%clk 0:03:12.9]} 13. h4 {[%clk 0:03:09.2]} 13... Nfd7 {[%clk 0:03:13.4]} 14.
f4 {[%clk 0:02:57.3]} 14... Nc4 {[%clk 0:03:14.3]} 15. Bxc4 {[%clk 0:02:58.7]}
15... Qxc4 {[%clk 0:03:15.6]} 16. e5 {[%clk 0:03:00.3]} 16... Rad8 {[%clk
0:03:16]} 17. exd6 {[%clk 0:02:58]} 17... Nf6 {[%clk 0:03:16.6]} 18. Qg2 {[%clk
0:02:31]} 18... Rxd6 {[%clk 0:03:15.7]} 19. h5 {[%clk 0:02:26.6]} 19... b5
{[%clk 0:02:50.7]} 20. hxg6 {[%clk 0:02:25.4]} 20... hxg6 {[%clk 0:02:50.8]} 21.
Rxd6 {[%clk 0:02:01]} 21... exd6 {[%clk 0:02:50.1]} 22. Kb1 {[%clk 0:01:36.5]}
22... b4 {[%clk 0:02:47.4]} 23. Nd1 {[%clk 0:01:33.3]} 23... Nd5 {[%clk
0:02:34.7]} 24. Bxa7 {[%clk 0:01:10.9]} 24... Ra8 {[%clk 0:02:19.2]} 25. Qf2
{[%clk 0:01:09.2]} 25... Qxf4 {[%clk 0:01:42.8]} 26. Qxf4 {[%clk 0:00:59.4]}
26... Nxf4 {[%clk 0:01:43.7]} 27. Be3 {[%clk 0:01:01.1]} 27... Nd5 {[%clk
0:01:41.5]} 28. Bd2 {[%clk 0:00:53.9]} 28... Rf8 {[%clk 0:01:30.3]} 29. Ne3
{[%clk 0:00:53]} 29... Nxe3 {[%clk 0:01:27.2]} 30. Bxe3 {[%clk 0:00:54.9]} 30...
d5 {[%clk 0:00:50.6]} 31. Bd2 {[%clk 0:00:46.7]} 31... Rb8 {[%clk 0:00:51.2]}
32. Re1 {[%clk 0:00:13.4]} 32... Kf7 {[%clk 0:00:39.8]} 33. Re3 {[%clk
0:00:09.3]} 33... Bf8 {[%clk 0:00:23.7]} 34. c3 {[%clk 0:00:06.2]} 34... bxc3
{[%clk 0:00:21.7]} 35. Bxc3 {[%clk 0:00:08.1]} 35... Bd6 {[%clk 0:00:20]} 36.
Kc2 {[%clk 0:00:08.6]} 36... Bc5 {[%clk 0:00:20.1]} 37. Rf3+ {[%clk 0:00:09.4]}
37... Ke7 {[%clk 0:00:20.5]} 38. a3 {[%clk 0:00:09.4]} 38... d4 {[%clk
0:00:21.7]} 39. Bd2 {[%clk 0:00:10]} 39... e5 {[%clk 0:00:22.9]} 40. b4 {[%clk
0:00:10.9]} 40... Bd6 {[%clk 0:00:23.4]} 41. Kd3 {[%clk 0:00:12.3]} 41... Ke6
{[%clk 0:00:24.1]} 42. Ke4 {[%clk 0:00:11.7]} 42... Rc8 {[%clk 0:00:21.7]} 43.
Bg5 {[%clk 0:00:11.3]} 43... Rc2 {[%clk 0:00:20.7]} 44. Rf6+ {[%clk 0:00:11.6]}
44... Kd7 {[%clk 0:00:20.5]} 45. Kd5 {[%clk 0:00:11.9]} 45... Bc7 {[%clk
0:00:15.9]} 46. Rxg6 {[%clk 0:00:11.2]} 46... d3 {[%clk 0:00:17.2]} 47. Rg7+
{[%clk 0:00:11.2]} 47... Kc8 {[%clk 0:00:17.4]} 48. Ke4 {[%clk 0:00:02.5]} 48...
d2 {[%clk 0:00:17.8]} 49. Bxd2 {[%clk 0:00:03.9]} 49... Rxd2 {[%clk 0:00:18.7]}
50. g5 {[%clk 0:00:05.8]} 50... Rd4+ {[%clk 0:00:13.5]} 51. Kf5 {[%clk
0:00:05.6]} 51... Rf4+ {[%clk 0:00:14]} 52. Kg6 {[%clk 0:00:06.9]} 52... e4
{[%clk 0:00:15.1]} 53. Re7 {[%clk 0:00:08.2]} 53... Rg4 {[%clk 0:00:15.3]} 54.
Kf5 {[%clk 0:00:09.1]} 54... Rf4+ {[%clk 0:00:15.7]} 55. Ke6 {[%clk 0:00:07.8]}
55... Rg4 {[%clk 0:00:16.8]} 56. Kf6 {[%clk 0:00:08.2]} 56... Bd8 {[%clk
0:00:16.8]} 0-1